[Event "Late-Titled-Tuesday-Blitz-May-28-2024"]
[Site "Chess.com"]
[Date "2024.05.28"]
[Round "7"]
[White "Mariia89"]
[Black "Quattroporte300"]
[Result "0-1"]
[WhiteElo "2219"]
[BlackElo "2405"]
[TimeControl "180+1"]
[EndTime "15:18:24 PDT"]
[Termination "Quattroporte300 won by checkmate"]

1. d4 {[%clk 0:02:59.5]} 1... Nf6 {[%clk 0:02:55.4]} 2. Nf3 {[%clk 0:02:59.8]}
2... g6 {[%clk 0:02:54.1]} 3. c4 {[%clk 0:02:59.9]} 3... Bg7 {[%clk 0:02:54.1]}
4. Nc3 {[%clk 0:03:00.8]} 4... O-O {[%clk 0:02:52.7]} 5. e4 {[%clk 0:03:01]}
5... d6 {[%clk 0:02:51.4]} 6. Be2 {[%clk 0:03:01.3]} 6... Nbd7 {[%clk
0:02:49.9]} 7. O-O {[%clk 0:03:01.8]} 7... e5 {[%clk 0:02:50.5]} 8. d5 {[%clk
0:03:01.7]} 8... Nc5 {[%clk 0:02:45.4]} 9. Qc2 {[%clk 0:03:01.8]} 9... a5 {[%clk
0:02:41.7]} 10. b3 {[%clk 0:03:01.7]} 10... Bd7 {[%clk 0:02:41]} 11. a3 {[%clk
0:02:59.8]} 11... a4 {[%clk 0:02:33.6]} 12. b4 {[%clk 0:02:59.5]} 12... Nb3
{[%clk 0:02:33.3]} 13. Rb1 {[%clk 0:03:00.1]} 13... Nxc1 {[%clk 0:02:28.2]} 14.
Rbxc1 {[%clk 0:03:01]} 14... Nh5 {[%clk 0:02:27.7]} 15. Rfe1 {[%clk 0:03:00.4]}
15... f5 {[%clk 0:02:27]} 16. c5 {[%clk 0:02:55.8]} 16... Nf4 {[%clk 0:02:20.8]}
17. Bf1 {[%clk 0:02:55.4]} 17... fxe4 {[%clk 0:02:13.9]} 18. Nxe4 {[%clk
0:02:55.1]} 18... Bf5 {[%clk 0:02:14.5]} 19. Qc4 {[%clk 0:02:49.8]} 19... h6
{[%clk 0:02:09.3]} 20. cxd6 {[%clk 0:02:15.7]} 20... cxd6 {[%clk 0:02:08.7]} 21.
Qc7 {[%clk 0:02:16]} 21... Nxd5 {[%clk 0:00:52.2]} 22. Qxb7 {[%clk 0:02:06.6]}
22... Nf4 {[%clk 0:00:47.8]} 23. Rc7 {[%clk 0:02:02.5]} 23... Ne6 {[%clk
0:00:43.3]} 24. Rd7 {[%clk 0:01:48.9]} 24... Rb8 {[%clk 0:00:31.9]} 25. Rxd8
{[%clk 0:01:32.8]} 25... Rxb7 {[%clk 0:00:31.6]} 26. Rxf8+ {[%clk 0:01:32.7]}
26... Bxf8 {[%clk 0:00:29.9]} 27. Nf6+ {[%clk 0:01:32]} 27... Kf7 {[%clk
0:00:26.2]} 28. Nd5 {[%clk 0:01:31.9]} 28... Nc7 {[%clk 0:00:22.8]} 29. Bc4
{[%clk 0:01:30]} 29... Be6 {[%clk 0:00:20.8]} 30. Ne3 {[%clk 0:00:46]} 30...
Bxc4 {[%clk 0:00:20.1]} 31. Nxc4 {[%clk 0:00:46]} 31... Ke6 {[%clk 0:00:19.8]}
32. Na5 {[%clk 0:00:43.5]} 32... Rb6 {[%clk 0:00:14.7]} 33. Nd2 {[%clk
0:00:32.8]} 33... Nb5 {[%clk 0:00:12.9]} 34. Ndc4 {[%clk 0:00:31.6]} 34... Rb8
{[%clk 0:00:11]} 35. f4 {[%clk 0:00:25.3]} 35... Bg7 {[%clk 0:00:10.1]} 36. fxe5
{[%clk 0:00:25]} 36... dxe5 {[%clk 0:00:11]} 37. g3 {[%clk 0:00:16]} 37... Rd8
{[%clk 0:00:11.3]} 38. Kg2 {[%clk 0:00:15.1]} 38... Rd3 {[%clk 0:00:10.5]} 39.
Re3 {[%clk 0:00:08.1]} 39... Rxe3 {[%clk 0:00:09.3]} 40. Nxe3 {[%clk 0:00:08.4]}
40... Nxa3 {[%clk 0:00:10]} 41. Nec4 {[%clk 0:00:03.7]} 41... Nb5 {[%clk
0:00:09.8]} 42. Nc6 {[%clk 0:00:03.1]} 42... Kd5 {[%clk 0:00:07.5]} 43. Ne7+
{[%clk 0:00:01.5]} 43... Kxc4 {[%clk 0:00:06.8]} 44. Nxg6 {[%clk 0:00:02.4]}
44... a3 {[%clk 0:00:06.6]} 45. Nxe5+ {[%clk 0:00:02.8]} 45... Bxe5 {[%clk
0:00:06.5]} 46. Kf3 {[%clk 0:00:03.7]} 46... a2 {[%clk 0:00:07]} 47. Ke4 {[%clk
0:00:04.6]} 47... a1=Q {[%clk 0:00:06.8]} 48. g4 {[%clk 0:00:05.2]} 48... Nd6+
{[%clk 0:00:06.7]} 49. Kf3 {[%clk 0:00:04.6]} 49... Qc3+ {[%clk 0:00:07.1]} 50.
Kg2 {[%clk 0:00:04.2]} 50... Qd2+ {[%clk 0:00:07.2]} 51. Kh3 {[%clk 0:00:05.1]}
51... Qxh2# {[%clk 0:00:06.6]} 0-1

[Event "Late-Titled-Tuesday-Blitz-May-28-2024"]
[Site "Chess.com"]
[Date "2024.05.28"]
[Round "7"]
[White "AlexeiShirov"]
[Black "RuperezA"]
[Result "1/2-1/2"]
[WhiteElo "2910"]
[BlackElo "2732"]
[TimeControl "180+1"]
[EndTime "15:18:25 PDT"]
[Termination "Game drawn by repetition"]

1. e4 {[%clk 0:03:00.9]} 1... e6 {[%clk 0:02:55.6]} 2. d4 {[%clk 0:02:59]} 2...
d5 {[%clk 0:02:56.5]} 3. e5 {[%clk 0:02:59.3]} 3... c5 {[%clk 0:02:55.9]} 4. c3
{[%clk 0:02:59.5]} 4... Qb6 {[%clk 0:02:56.6]} 5. Nf3 {[%clk 0:02:59.7]} 5...
Nc6 {[%clk 0:02:57.3]} 6. a3 {[%clk 0:02:56.7]} 6... Nh6 {[%clk 0:02:57.2]} 7.
b4 {[%clk 0:02:55.6]} 7... cxd4 {[%clk 0:02:57.7]} 8. Bxh6 {[%clk 0:02:55.4]}
8... gxh6 {[%clk 0:02:57.3]} 9. cxd4 {[%clk 0:02:55.1]} 9... Bd7 {[%clk
0:02:53.3]} 10. Ra2 {[%clk 0:02:53.3]} 10... Rg8 {[%clk 0:02:49.1]} 11. g3
{[%clk 0:02:48.9]} 11... Rg4 {[%clk 0:02:47.8]} 12. Rd2 {[%clk 0:02:48.7]} 12...
a5 {[%clk 0:02:43]} 13. b5 {[%clk 0:02:47.5]} 13... Re4+ {[%clk 0:02:42.3]} 14.
Be2 {[%clk 0:02:46.8]} 14... Qxb5 {[%clk 0:02:18.5]} 15. O-O {[%clk 0:02:45.3]}
15... Qb6 {[%clk 0:01:58.3]} 16. Bd3 {[%clk 0:02:41.9]} 16... Rg4 {[%clk
0:01:51.3]} 17. Bxh7 {[%clk 0:02:32.2]} 17... Rc8 {[%clk 0:01:46.2]} 18. h3
{[%clk 0:02:25.2]} 18... Rg7 {[%clk 0:01:44.4]} 19. Bc2 {[%clk 0:02:24.8]} 19...
Na7 {[%clk 0:01:39]} 20. Ba4 {[%clk 0:02:19.5]} 20... Bxa4 {[%clk 0:01:24.8]}
21. Qxa4+ {[%clk 0:02:18.7]} 21... Qb5 {[%clk 0:01:25.7]} 22. Qd1 {[%clk
0:02:17.6]} 22... Qc4 {[%clk 0:01:14.3]} 23. Ne1 {[%clk 0:02:09.1]} 23... Kd7
{[%clk 0:00:59.2]} 24. Ng2 {[%clk 0:02:02.6]} 24... b5 {[%clk 0:00:48]} 25. Ne3
{[%clk 0:01:59.8]} 25... Qa4 {[%clk 0:00:48.4]} 26. Qxa4 {[%clk 0:01:54.8]}
26... bxa4 {[%clk 0:00:49.3]} 27. Rb2 {[%clk 0:01:54.1]} 27... Rc7 {[%clk
0:00:47.4]} 28. Rb8 {[%clk 0:01:47]} 28... Be7 {[%clk 0:00:47.1]} 29. Ng4 {[%clk
0:01:37.4]} 29... h5 {[%clk 0:00:45.9]} 30. Nf6+ {[%clk 0:01:36]} 30... Bxf6
{[%clk 0:00:46.1]} 31. exf6 {[%clk 0:01:34]} 31... Rg6 {[%clk 0:00:46.7]} 32.
Nd2 {[%clk 0:01:26.8]} 32... Nc6 {[%clk 0:00:43.8]} 33. Ra8 {[%clk 0:01:14.8]}
33... Rxf6 {[%clk 0:00:38.9]} 34. Rc1 {[%clk 0:01:11.4]} 34... Nxd4 {[%clk
0:00:18.8]} 35. Rxc7+ {[%clk 0:01:06.5]} 35... Kxc7 {[%clk 0:00:19.7]} 36. Kg2
{[%clk 0:01:05.5]} 36... Nb3 {[%clk 0:00:17.3]} 37. Nf3 {[%clk 0:01:04.3]} 37...
Kb6 {[%clk 0:00:16.6]} 38. Ne5 {[%clk 0:01:02.7]} 38... Rf5 {[%clk 0:00:12.4]}
39. f4 {[%clk 0:01:02]} 39... h4 {[%clk 0:00:12.2]} 40. Rf8 {[%clk 0:00:48.7]}
40... hxg3 {[%clk 0:00:10.5]} 41. Rxf7 {[%clk 0:00:48.6]} 41... Rxf7 {[%clk
0:00:09.5]} 42. Nxf7 {[%clk 0:00:48.6]} 42... d4 {[%clk 0:00:10.4]} 43. Ne5
{[%clk 0:00:48]} 43... Nc1 {[%clk 0:00:06.7]} 44. h4 {[%clk 0:00:47]} 44... d3
{[%clk 0:00:06]} 45. Nc4+ {[%clk 0:00:38.2]} 45... Kc5 {[%clk 0:00:05.9]} 46.
Nd2 {[%clk 0:00:35.4]} 46... Ne2 {[%clk 0:00:05.7]} 47. Kf3 {[%clk 0:00:33.4]}
47... Kd4 {[%clk 0:00:04.8]} 48. Nf1 {[%clk 0:00:30.5]} 48... g2 {[%clk
0:00:03.6]} 49. Kxg2 {[%clk 0:00:30]} 49... Nxf4+ {[%clk 0:00:03.7]} 50. Kf3
{[%clk 0:00:30.5]} 50... Nh5 {[%clk 0:00:02.7]} 51. Kg4 {[%clk 0:00:25.8]} 51...
Ng7 {[%clk 0:00:02.9]} 52. h5 {[%clk 0:00:21.4]} 52... Nxh5 {[%clk 0:00:02.3]}
53. Kxh5 {[%clk 0:00:21.6]} 53... e5 {[%clk 0:00:03.2]} 54. Kg4 {[%clk
0:00:21.7]} 54... e4 {[%clk 0:00:04.1]} 55. Kf4 {[%clk 0:00:21.9]} 55... e3
{[%clk 0:00:02]} 56. Nxe3 {[%clk 0:00:21.3]} 56... d2 {[%clk 0:00:02.6]} 57. Kf3
{[%clk 0:00:20.8]} 57... Kd3 {[%clk 0:00:03.2]} 58. Kf2 {[%clk 0:00:21]} 58...
Kc3 {[%clk 0:00:02.3]} 59. Ke2 {[%clk 0:00:21.1]} 59... Kb2 {[%clk 0:00:03.2]}
60. Kxd2 {[%clk 0:00:21.2]} 60... Kxa3 {[%clk 0:00:03.8]} 61. Kc3 {[%clk
0:00:21.1]} 61... Ka2 {[%clk 0:00:02.9]} 62. Kc2 {[%clk 0:00:21.3]} 62... Ka3
{[%clk 0:00:03.3]} 63. Kc3 {[%clk 0:00:21.5]} 63... Ka2 {[%clk 0:00:04.2]} 64.
Kc2 {[%clk 0:00:21.9]} 64... Ka3 {[%clk 0:00:05.1]} 65. Kc3 {[%clk 0:00:22]}
1/2-1/2

[Event "Late-Titled-Tuesday-Blitz-May-28-2024"]
[Site "Chess.com"]
[Date "2024.05.28"]
[Round "7"]
[White "GianmarcoVaR"]
[Black "GiorgianBarbosa"]
[Result "1-0"]
[WhiteElo "2709"]
[BlackElo "2511"]
[TimeControl "180+1"]
[EndTime "15:18:31 PDT"]
[Termination "GianmarcoVaR won by checkmate"]

1. Nf3 {[%clk 0:02:58.5]} 1... Nf6 {[%clk 0:03:00]} 2. g3 {[%clk 0:02:59]} 2...
e6 {[%clk 0:03:00.9]} 3. Bg2 {[%clk 0:02:59.5]} 3... d5 {[%clk 0:03:01.5]} 4.
O-O {[%clk 0:03:00.4]} 4... Be7 {[%clk 0:03:02.1]} 5. d3 {[%clk 0:02:54.5]} 5...
O-O {[%clk 0:03:03]} 6. Nc3 {[%clk 0:02:54.8]} 6... c5 {[%clk 0:03:02.9]} 7. e4
{[%clk 0:02:54.7]} 7... Nc6 {[%clk 0:03:01.6]} 8. Bf4 {[%clk 0:02:50.4]} 8... b6
{[%clk 0:02:56.6]} 9. Ne5 {[%clk 0:02:35.4]} 9... Nxe5 {[%clk 0:02:52.5]} 10.
Bxe5 {[%clk 0:02:35.6]} 10... Bb7 {[%clk 0:02:52.9]} 11. Qe2 {[%clk 0:02:31.9]}
11... Qd7 {[%clk 0:02:40]} 12. f4 {[%clk 0:02:10.9]} 12... Rfe8 {[%clk
0:02:38.6]} 13. Kh1 {[%clk 0:01:54.5]} 13... b5 {[%clk 0:02:29.3]} 14. Rae1
{[%clk 0:01:39.5]} 14... b4 {[%clk 0:02:19.2]} 15. Nd1 {[%clk 0:01:39.2]} 15...
dxe4 {[%clk 0:02:05.1]} 16. dxe4 {[%clk 0:01:37.7]} 16... Qa4 {[%clk 0:02:00.9]}
17. b3 {[%clk 0:01:22.4]} 17... Qxa2 {[%clk 0:01:50]} 18. Nb2 {[%clk 0:01:18.3]}
18... Qa6 {[%clk 0:01:30.2]} 19. Nc4 {[%clk 0:01:18.6]} 19... Qb5 {[%clk
0:01:18.9]} 20. g4 {[%clk 0:00:57.9]} 20... a5 {[%clk 0:01:16.9]} 21. g5 {[%clk
0:00:54.4]} 21... Nd7 {[%clk 0:01:17.1]} 22. Bb2 {[%clk 0:00:49.4]} 22... a4
{[%clk 0:01:11.3]} 23. Rf3 {[%clk 0:00:41.4]} 23... axb3 {[%clk 0:01:07.6]} 24.
cxb3 {[%clk 0:00:41.6]} 24... Ra2 {[%clk 0:01:06.6]} 25. Rh3 {[%clk 0:00:40.2]}
25... g6 {[%clk 0:00:53.2]} 26. Qf2 {[%clk 0:00:08.3]} 26... h5 {[%clk
0:00:34.8]} 27. gxh6 {[%clk 0:00:06.4]} 27... Kh7 {[%clk 0:00:35.3]} 28. f5
{[%clk 0:00:03.9]} 28... exf5 {[%clk 0:00:20.4]} 29. exf5 {[%clk 0:00:04.5]}
29... Bxg2+ {[%clk 0:00:21.1]} 30. Qxg2 {[%clk 0:00:05]} 30... Nf6 {[%clk
0:00:15.8]} 31. Rhe3 {[%clk 0:00:02.6]} 31... Ra7 {[%clk 0:00:10.6]} 32. fxg6+
{[%clk 0:00:02.3]} 32... fxg6 {[%clk 0:00:10.7]} 33. Re6 {[%clk 0:00:02.4]}
33... Qb7 {[%clk 0:00:10.2]} 34. Bxf6 {[%clk 0:00:02.4]} 34... Qxg2+ {[%clk
0:00:04.1]} 35. Kxg2 {[%clk 0:00:03.3]} 35... Kxh6 {[%clk 0:00:04.5]} 36. Bxe7
{[%clk 0:00:03.5]} 36... Ra2+ {[%clk 0:00:04.7]} 37. Kh1 {[%clk 0:00:04.1]}
37... Rb2 {[%clk 0:00:04.7]} 38. Bxc5 {[%clk 0:00:02.7]} 38... Rxb3 {[%clk
0:00:05.6]} 39. Rxe8 {[%clk 0:00:02.6]} 39... Kh5 {[%clk 0:00:05]} 40. Rh8+
{[%clk 0:00:02.5]} 40... Kg4 {[%clk 0:00:05.9]} 41. Rg1+ {[%clk 0:00:02.5]}
41... Kf5 {[%clk 0:00:06.8]} 42. Nd6+ {[%clk 0:00:02.2]} 42... Ke6 {[%clk
0:00:06.8]} 43. Re8+ {[%clk 0:00:02.3]} 43... Kd5 {[%clk 0:00:07.7]} 44. Rg5+
{[%clk 0:00:02.2]} 44... Kc6 {[%clk 0:00:07.9]} 45. Nf7 {[%clk 0:00:02]} 45...
Rb1+ {[%clk 0:00:08.4]} 46. Kg2 {[%clk 0:00:02]} 46... Rb2+ {[%clk 0:00:09.3]}
47. Kg3 {[%clk 0:00:02]} 47... Kd7 {[%clk 0:00:10.2]} 48. Kg4 {[%clk 0:00:02.4]}
48... Kc6 {[%clk 0:00:11]} 49. Rc8+ {[%clk 0:00:02.7]} 49... Kd7 {[%clk
0:00:11.2]} 50. Rb8 {[%clk 0:00:03.4]} 50... Kc7 {[%clk 0:00:11.1]} 51. Rb6
{[%clk 0:00:03.7]} 51... Rc2 {[%clk 0:00:10.2]} 52. Rxb4 {[%clk 0:00:03.5]}
52... Rc4+ {[%clk 0:00:11]} 53. Rxc4 {[%clk 0:00:03.4]} 53... Kd7 {[%clk
0:00:11.1]} 54. Bb4 {[%clk 0:00:02.8]} 54... Ke6 {[%clk 0:00:12]} 55. Rc6+
{[%clk 0:00:02.8]} 55... Kxf7 {[%clk 0:00:12.9]} 56. Rf5+ {[%clk 0:00:03.2]}
56... gxf5+ {[%clk 0:00:12.6]} 57. Kxf5 {[%clk 0:00:03.9]} 57... Kg7 {[%clk
0:00:13.5]} 58. Rc7+ {[%clk 0:00:04.5]} 58... Kh6 {[%clk 0:00:14.4]} 59. Bd2+
{[%clk 0:00:04.9]} 59... Kh5 {[%clk 0:00:14.1]} 60. Rh7# {[%clk 0:00:05.8]} 1-0

[Event "Late-Titled-Tuesday-Blitz-May-28-2024"]
[Site "Chess.com"]
[Date "2024.05.28"]
[Round "7"]
[White "ckgchess"]
[Black "Msb2"]
[Result "0-1"]
[WhiteElo "2874"]
[BlackElo "3040"]
[TimeControl "180+1"]
[EndTime "15:18:38 PDT"]
[Termination "Msb2 won on time"]

1. e4 {[%clk 0:03:00.9]} 1... e6 {[%clk 0:03:00.4]} 2. d4 {[%clk 0:03:00.9]}
2... d5 {[%clk 0:03:01]} 3. Nc3 {[%clk 0:03:00.2]} 3... Nf6 {[%clk 0:03:01.2]}
4. e5 {[%clk 0:02:59.8]} 4... Nfd7 {[%clk 0:03:01.6]} 5. f4 {[%clk 0:03:00.4]}
5... c5 {[%clk 0:03:02.3]} 6. Nf3 {[%clk 0:03:00.8]} 6... Nc6 {[%clk 0:03:03.1]}
7. Be3 {[%clk 0:03:01.1]} 7... Rb8 {[%clk 0:03:03.8]} 8. Be2 {[%clk 0:02:49.3]}
8... cxd4 {[%clk 0:02:54.1]} 9. Nxd4 {[%clk 0:02:49.4]} 9... Bc5 {[%clk
0:02:54.8]} 10. Qd2 {[%clk 0:02:38.7]} 10... O-O {[%clk 0:02:42.8]} 11. O-O
{[%clk 0:02:02.7]} 11... a6 {[%clk 0:02:32.2]} 12. Kh1 {[%clk 0:02:02.1]} 12...
Nxd4 {[%clk 0:02:28.6]} 13. Bxd4 {[%clk 0:02:02.4]} 13... b5 {[%clk 0:02:29.3]}
14. Bxc5 {[%clk 0:01:54.1]} 14... Nxc5 {[%clk 0:02:30.2]} 15. f5 {[%clk
0:01:41.1]} 15... exf5 {[%clk 0:02:23.2]} 16. Qxd5 {[%clk 0:01:40.8]} 16... Qxd5
{[%clk 0:02:17.8]} 17. Nxd5 {[%clk 0:01:41.7]} 17... Re8 {[%clk 0:02:18.5]} 18.
Bf3 {[%clk 0:01:16.4]} 18... Rxe5 {[%clk 0:02:12.5]} 19. Rfe1 {[%clk 0:01:14.8]}
19... Rxe1+ {[%clk 0:02:11.2]} 20. Rxe1 {[%clk 0:01:14.7]} 20... Be6 {[%clk
0:02:09.5]} 21. b4 {[%clk 0:01:09.2]} 21... Bxd5 {[%clk 0:02:01.6]} 22. Bxd5
{[%clk 0:01:09.4]} 22... Ne4 {[%clk 0:02:01.8]} 23. g4 {[%clk 0:00:57.7]} 23...
Nf2+ {[%clk 0:00:52.5]} 24. Kg1 {[%clk 0:00:58]} 24... Nxg4 {[%clk 0:00:53.4]}
25. Re7 {[%clk 0:00:58.5]} 25... Rd8 {[%clk 0:00:51.1]} 26. Bxf7+ {[%clk
0:00:49.3]} 26... Kf8 {[%clk 0:00:50.4]} 27. Ra7 {[%clk 0:00:50]} 27... f4
{[%clk 0:00:43.2]} 28. Be6 {[%clk 0:00:44.6]} 28... Ne5 {[%clk 0:00:37.2]} 29.
Rxa6 {[%clk 0:00:34.7]} 29... Rd1+ {[%clk 0:00:36.5]} 30. Kf2 {[%clk 0:00:29.4]}
30... Rd2+ {[%clk 0:00:37.4]} 31. Kf1 {[%clk 0:00:29.2]} 31... Rxc2 {[%clk
0:00:36.9]} 32. Rb6 {[%clk 0:00:22]} 32... Ke7 {[%clk 0:00:23.1]} 33. Bb3 {[%clk
0:00:21.6]} 33... Rc1+ {[%clk 0:00:21.4]} 34. Kf2 {[%clk 0:00:22.3]} 34... Nd3+
{[%clk 0:00:15.8]} 35. Kf3 {[%clk 0:00:21.2]} 35... g5 {[%clk 0:00:12.8]} 36.
Rxb5 {[%clk 0:00:21.5]} 36... Kf6 {[%clk 0:00:13.3]} 37. Ke4 {[%clk 0:00:11.3]}
37... Nf2+ {[%clk 0:00:11.3]} 38. Kf3 {[%clk 0:00:11.8]} 38... Nd3 {[%clk
0:00:11.1]} 39. Ke4 {[%clk 0:00:12.5]} 39... Nb2 {[%clk 0:00:05.4]} 40. Rf5+
{[%clk 0:00:10.3]} 40... Kg6 {[%clk 0:00:05.8]} 41. Bf7+ {[%clk 0:00:10.7]}
41... Kh6 {[%clk 0:00:06.2]} 42. h4 {[%clk 0:00:10.2]} 42... Re1+ {[%clk
0:00:06.4]} 43. Kd4 {[%clk 0:00:07.3]} 43... gxh4 {[%clk 0:00:03.6]} 44. Rxf4
{[%clk 0:00:08]} 44... Kg5 {[%clk 0:00:04.2]} 45. Rf2 {[%clk 0:00:07.1]} 45...
Nd1 {[%clk 0:00:04.6]} 46. Rg2+ {[%clk 0:00:06.4]} 46... Kf4 {[%clk 0:00:05.1]}
47. b5 {[%clk 0:00:06.5]} 47... h3 {[%clk 0:00:05.6]} 48. Rg7 {[%clk 0:00:04.9]}
48... h2 {[%clk 0:00:05.5]} 49. Bd5 {[%clk 0:00:04.7]} 49... Ne3 {[%clk
0:00:04.9]} 50. Bc6 {[%clk 0:00:03]} 50... Rd1+ {[%clk 0:00:05]} 51. Kc5 {[%clk
0:00:03.1]} 51... Rc1+ {[%clk 0:00:05.6]} 52. Kb6 {[%clk 0:00:03]} 52... Rxc6+
{[%clk 0:00:06.4]} 53. bxc6 {[%clk 0:00:02.1]} 53... h1=Q {[%clk 0:00:07.3]} 54.
c7 {[%clk 0:00:02.8]} 54... Nd5+ {[%clk 0:00:07.8]} 55. Ka7 {[%clk 0:00:03]}
55... Nxc7 {[%clk 0:00:08.1]} 56. Rxc7 {[%clk 0:00:03.9]} 56... Qg1+ {[%clk
0:00:08.4]} 57. Kb7 {[%clk 0:00:04.1]} 57... Qg2+ {[%clk 0:00:08.9]} 58. Rc6
{[%clk 0:00:04.3]} 58... Qxa2 {[%clk 0:00:09.3]} 59. Kc7 {[%clk 0:00:04]} 59...
Qf7+ {[%clk 0:00:09]} 60. Kb6 {[%clk 0:00:04.3]} 60... Qb3+ {[%clk 0:00:09.3]}
61. Kc7 {[%clk 0:00:04.6]} 61... h5 {[%clk 0:00:09.7]} 62. Rb6 {[%clk
0:00:02.6]} 62... Qxb6+ {[%clk 0:00:09.1]} 0-1

[Event "Late-Titled-Tuesday-Blitz-May-28-2024"]
[Site "Chess.com"]
[Date "2024.05.28"]
[Round "7"]
[White "PhileKhoob"]
[Black "dolynachess"]
[Result "1-0"]
[WhiteElo "2332"]
[BlackElo "2506"]
[TimeControl "180+1"]
[EndTime "15:18:40 PDT"]
[Termination "PhileKhoob won on time"]

1. Nf3 {[%clk 0:03:00.9]} 1... Nf6 {[%clk 0:02:59.2]} 2. g3 {[%clk 0:02:52]}
2... c5 {[%clk 0:03:00.1]} 3. c4 {[%clk 0:02:46.9]} 3... g6 {[%clk 0:03:01]} 4.
Bg2 {[%clk 0:02:43]} 4... Bg7 {[%clk 0:03:01.5]} 5. d4 {[%clk 0:02:43.4]} 5...
O-O {[%clk 0:03:01.9]} 6. O-O {[%clk 0:02:42.5]} 6... cxd4 {[%clk 0:03:01.9]} 7.
Nxd4 {[%clk 0:02:42.3]} 7... Nc6 {[%clk 0:03:02.8]} 8. Nc3 {[%clk 0:02:42]} 8...
Nxd4 {[%clk 0:02:59.6]} 9. Qxd4 {[%clk 0:02:42.9]} 9... d6 {[%clk 0:03:00.4]}
10. Qd3 {[%clk 0:02:42.8]} 10... a6 {[%clk 0:03:00.7]} 11. Be3 {[%clk 0:02:39]}
11... Rb8 {[%clk 0:02:57.1]} 12. Bd4 {[%clk 0:02:35]} 12... Be6 {[%clk
0:02:51.9]} 13. b3 {[%clk 0:02:27.9]} 13... Qa5 {[%clk 0:02:47.9]} 14. e4 {[%clk
0:02:23.8]} 14... Rfc8 {[%clk 0:02:30.4]} 15. Nd5 {[%clk 0:02:14.6]} 15... Bxd5
{[%clk 0:02:28]} 16. exd5 {[%clk 0:02:02.1]} 16... b5 {[%clk 0:02:27.8]} 17.
Rfc1 {[%clk 0:01:47.5]} 17... Nd7 {[%clk 0:01:55.8]} 18. Bxg7 {[%clk 0:01:44.3]}
18... Kxg7 {[%clk 0:01:56.7]} 19. Bh3 {[%clk 0:01:41.7]} 19... Rc7 {[%clk
0:01:49.8]} 20. Bxd7 {[%clk 0:01:35.5]} 20... Rxd7 {[%clk 0:01:50.7]} 21. c5
{[%clk 0:01:32.1]} 21... dxc5 {[%clk 0:01:49.3]} 22. Rxc5 {[%clk 0:01:30.9]}
22... Rbd8 {[%clk 0:01:47.2]} 23. a3 {[%clk 0:00:34.2]} 23... Qb6 {[%clk
0:01:38.5]} 24. b4 {[%clk 0:00:26.7]} 24... Qf6 {[%clk 0:01:37.9]} 25. Qf1
{[%clk 0:00:20.3]} 25... Rxd5 {[%clk 0:01:33.1]} 26. Rxd5 {[%clk 0:00:19.8]}
26... Rxd5 {[%clk 0:01:34]} 27. Rc1 {[%clk 0:00:20.2]} 27... Rd2 {[%clk
0:01:25.9]} 28. Qe1 {[%clk 0:00:18.4]} 28... Ra2 {[%clk 0:01:23.5]} 29. Qe3
{[%clk 0:00:16.1]} 29... h5 {[%clk 0:01:13.5]} 30. h4 {[%clk 0:00:15]} 30... e6
{[%clk 0:01:11.7]} 31. Rc3 {[%clk 0:00:13]} 31... Ra1+ {[%clk 0:01:00.4]} 32.
Kg2 {[%clk 0:00:12.7]} 32... Rd1 {[%clk 0:00:59.6]} 33. Rc8 {[%clk 0:00:11.2]}
33... Qa1 {[%clk 0:00:52.8]} 34. Qc5 {[%clk 0:00:07.5]} 34... Rg1+ {[%clk
0:00:37]} 35. Kh2 {[%clk 0:00:05.2]} 35... Rh1+ {[%clk 0:00:36.1]} 36. Kg2
{[%clk 0:00:05]} 36... Qf1+ {[%clk 0:00:32.2]} 37. Kf3 {[%clk 0:00:04.9]} 37...
Qd1+ {[%clk 0:00:31.7]} 38. Kg2 {[%clk 0:00:04.3]} 38... Kh7 {[%clk 0:00:21.6]}
39. Qf8 {[%clk 0:00:02.9]} 39... Qd5+ {[%clk 0:00:14.7]} 40. f3 {[%clk
0:00:02.6]} 40... Qd2+ {[%clk 0:00:08]} 41. Kxh1 {[%clk 0:00:02.8]} 41... Qe1+
{[%clk 0:00:07.7]} 42. Kg2 {[%clk 0:00:02.8]} 42... Qe2+ {[%clk 0:00:07.8]} 43.
Kh3 {[%clk 0:00:03.2]} 43... Qf1+ {[%clk 0:00:06.6]} 44. Kh2 {[%clk 0:00:03.8]}
44... Qf2+ {[%clk 0:00:07]} 45. Kh3 {[%clk 0:00:04.4]} 45... Qf1+ {[%clk
0:00:07.2]} 46. Kh2 {[%clk 0:00:04.9]} 46... Qf2+ {[%clk 0:00:06.3]} 47. Kh1
{[%clk 0:00:04.4]} 47... Qxf3+ {[%clk 0:00:06.1]} 48. Kg1 {[%clk 0:00:04.6]}
48... Qxg3+ {[%clk 0:00:05.6]} 49. Kf1 {[%clk 0:00:05.1]} 49... Qf3+ {[%clk
0:00:06]} 50. Ke1 {[%clk 0:00:05.6]} 50... Qe3+ {[%clk 0:00:06.5]} 51. Kd1
{[%clk 0:00:06.1]} 51... Qd3+ {[%clk 0:00:06.9]} 52. Kc1 {[%clk 0:00:06.7]}
52... Qf1+ {[%clk 0:00:06.6]} 53. Kc2 {[%clk 0:00:05.6]} 53... Qe2+ {[%clk
0:00:06.3]} 54. Kc3 {[%clk 0:00:05.4]} 54... Qe3+ {[%clk 0:00:06.5]} 55. Kb2
{[%clk 0:00:05.4]} 55... Qd4+ {[%clk 0:00:01.4]} 56. Rc3 {[%clk 0:00:04.4]}
56... Qd2+ {[%clk 0:00:01.5]} 57. Kb3 {[%clk 0:00:04.7]} 57... Qd5+ {[%clk
0:00:01]} 58. Kc2 {[%clk 0:00:05.3]} 1-0